[Event "Katowice Springs 2018"]
[Site "Katowice"]
[Date "2018.05.08"]
[Round "2"]
[White "Shkuran, Danylo"]
[Black "Molchanov, Oleksii"]
[Result "0-1"]
[ECO "B47"]
[WhiteElo "2395"]
[BlackElo "2355"]
[Annotator "NA"]
[PlyCount "80"]
[EventDate "2018.??.??"]
[EventType "swiss"]
[EventCountry "POL"]
[SourceTitle "playchess.com"]
[Source "ChessBase"]
[SourceQuality "1"]
[TimeControl "40/5400+30:1800+30"]

{[%evp 8,44,33,11,35,31,47,16,14,9,37,29,51,10,25,10,4,10,7,6,25,-11,25,32767,-22,-20,0,-33,-32,-32,-34,32767,-18,-37,15,-23,-7,-22,0]} 1. e4 {[%emt 0:01:09]} c5 {[%emt 0:00:18]} 2. Nf3 {[%emt 0:00:11]} e6 {[%emt 0:00:22]} 3. d4 {[%emt 0:00:15]} cxd4 {[%emt 0:00:07]} 4. Nxd4 {[%emt 0:00:09]} Nc6 {[%emt 0:00:39]} 5. Nc3 {[%emt 0:00:16]} Qc7 {[%emt 0:00:52]} 6. g3 {[%emt 0:00:17]} a6 {[%emt 0:00:52]} 7. Bg2 {[%emt 0:00:12]} Nf6 {[%emt 0:00:41]} 8. O-O {[%emt 0:00:15]} Nxd4 {[%emt 0:02:30]} 9. Qxd4 {[%emt 0:00:12]} Bc5 {[%emt 0:00:06]} 10. Qd3 {[%emt 0:02:24]} Ng4 {[%emt 0:13:58]} 11. Qe2 {[%emt 0:07:59] B47: Sicilian: Taimanov: 5 Nc3 Qc7 6 f4, 6 g3 and 6 Be2} h5 {[%emt 0:06:07] LiveBook: 5 Games} 12. Kh1 {[%emt 0:05:34]} b5 {[%emt 0:13:39]} 13. Bf4 $146 {[%emt 0:12:54]} ({Predecessor:} 13. e5 Bb7 14. Bf4 Bd4 15. Rae1 Bxc3 16. bxc3 Bxg2+ 17. Kxg2 Qxc3 18. Rd1 Rc8 {½-½ (34) Adams,M (2753)-Van Kampen,R (2607) Hoogeveen 2013}) 13... Ne5 {[%emt 0:15:13]} 14. h4 {[%emt 0:08:54]} Bb7 {[%emt 0:01:34]} 15. Rad1 {[%emt 0:08:02]} d6 {[%emt 0:04:58]} 16. Nb1 {[%emt 0:06:24]} Qb6 {[%emt 0:03:39]} 17. Bxe5 {[%emt 0:06:40]} dxe5 {[%emt 0:00:11]} 18. Nd2 {[%emt 0:00:13]} Be7 {[%emt 0:02:50]} 19. Nf3 {[%emt 0:05:11]} f6 {[%emt 0:02:03]} 20. Ne1 {[%emt 0:05:24]} Rc8 {[%emt 0:02:02]} 21. f4 {[%emt 0:02:26]} exf4 {[%emt 0:02:44]} 22. gxf4 {[%emt 0:06:49]} Qc7 $11 {[%emt 0:04:22]} 23. c3 {[%emt 0:07:23]} Qc4 {[%emt 0:01:14]} 24. Qxc4 {[%emt 0:01:04]} Rxc4 {[%emt 0:00:18]} 25. Rd4 {[%emt 0:00:42]} Rxd4 {[%emt 0:01:43]} 26. cxd4 {[%emt 0:00:09]} Kf7 {[%emt 0:00:07]} 27. Rf2 {[%emt 0:03:24]} Rd8 {[%emt 0:02:40]} 28. Nc2 {[%emt 0:00:29]} a5 {[%emt 0:07:17]} 29. Kh2 {[%emt 0:03:01]} b4 {[%emt 0:00:24]} 30. b3 {[%emt 0:03:39]} Rd7 {[%emt 0:01:16]} 31. Kg3 {[%emt 0:01:40]} Rc7 {[%emt 0:00:43]} 32. Rd2 {[%emt 0:01:16]} Rc3+ {[%emt 0:01:01]} 33. Kh2 {[%emt 0:00:48]} Ba6 {[%emt 0:01:18]} 34. f5 {[%emt 0:01:00]} Bd6+ {[%emt 0:00:54]} 35. Kg1 {[%emt 0:00:09]} exf5 {[%emt 0:01:56]} 36. exf5 {[%emt 0:00:03]} Bd3 {[%emt 0:00:42]} 37. Ne1 {[%emt 0:01:22]} Bxf5 {[%emt 0:00:14]} 38. Bd5+ {[%emt 0:00:23]} Kf8 {[%emt 0:00:20]} 39. Bc4 {[%emt 0:00:09]} Bf4 {[%emt 0:02:01]} 40. Rd1 {[%emt 0:00:10]} Bg4 {[%emt 0:30:49]} 0-1

[Event "Katowice Springs 2018"]
[Site "Katowice"]
[Date "2018.05.08"]
[Round "2"]
[White "Molenda, Marcin"]
[Black "Pacan-Milej, Kosma"]
[Result "1-0"]
[ECO "D11"]
[WhiteElo "2383"]
[BlackElo "2301"]
[Annotator "ChessBase"]
[PlyCount "61"]
[EventDate "2018.??.??"]
[EventType "swiss"]
[EventCountry "POL"]
[SourceTitle "playchess.com"]
[Source "ChessBase"]
[SourceQuality "1"]
[TimeControl "40/5400+30:1800+30"]

1. d4 {[%emt 0:00:00]} d5 {[%emt 0:00:09]} 2. c4 {[%emt 0:00:00]} c6 {[%emt 0:00:06]} 3. Nf3 {[%emt 0:00:00]} Nf6 {[%emt 0:00:05]} 4. e3 {[%emt 0:00:02]} a6 {[%emt 0:00:21]} 5. Bd3 {[%emt 0:00:26]} Bg4 {[%emt 0:00:32]} 6. Nbd2 {[%emt 0:00:13]} e6 {[%emt 0:00:55]} 7. O-O {[%emt 0:00:15]} Nbd7 {[%emt 0:00:16]} 8. Qc2 {[%emt 0:00:20]} Be7 {[%emt 0:01:32]} 9. b3 {[%emt 0:00:29]} O-O {[%emt 0:01:10]} 10. Bb2 {[%emt 0:00:30]} Bh5 {[%emt 0:03:24]} 11. Ne5 {[%emt 0:01:42]} Bd6 {[%emt 0:10:23]} 12. f4 {[%emt 0:00:49]} Bg6 {[%emt 0:02:52]} 13. Nxg6 {[%emt 0:00:36]} hxg6 {[%emt 0:00:08]} 14. c5 {[%emt 0:03:02]} Bc7 {[%emt 0:00:07]} 15. h3 {[%emt 0:01:26]} Nh5 {[%emt 0:40:15]} 16. Nf3 {[%emt 0:06:38]} Ng3 {[%emt 0:01:31]} 17. Rfc1 {[%emt 0:08:03]} Nf6 {[%emt 0:04:45]} 18. Bc3 {[%emt 0:09:48]} Nfe4 {[%emt 0:06:15]} 19. Be1 {[%emt 0:02:32]} Nf5 {[%emt 0:01:13]} 20. Qe2 {[%emt 0:03:00]} Qf6 {[%emt 0:13:47]} 21. Bxe4 {[%emt 0:05:33]} dxe4 {[%emt 0:00:09]} 22. Nd2 {[%emt 0:00:08]} Bxf4 {[%emt 0:04:56]} 23. exf4 {[%emt 0:00:26]} Qxd4+ {[%emt 0:00:09]} 24. Kh1 {[%emt 0:01:08]} e3 {[%emt 0:00:55]} 25. Nf3 {[%emt 0:03:22]} Qxf4 {[%emt 0:01:21]} 26. Rc4 {[%emt 0:00:10]} Qh6 {[%emt 0:02:24]} 27. Kh2 {[%emt 0:01:03]} g5 {[%emt 0:03:32]} 28. g4 {[%emt 0:01:56]} Ne7 {[%emt 0:00:11]} 29. Qxe3 {[%emt 0:01:18]} Qf6 {[%emt 0:00:07]} 30. Bc3 {[%emt 0:01:47]} Nd5 {[%emt 0:00:07]} 31. Qxg5 {[%emt 0:00:28]} 1-0

[Event "Katowice Springs 2018"]
[Site "Katowice"]
[Date "2018.05.08"]
[Round "2"]
[White "Szustakowski, Antoni"]
[Black "Bakalarz, Mietek"]
[Result "1-0"]
[ECO "D20"]
[WhiteElo "2331"]
[BlackElo "2288"]
[Annotator "NA"]
[PlyCount "117"]
[EventDate "2018.??.??"]
[EventType "swiss"]
[EventCountry "POL"]
[SourceTitle "playchess.com"]
[Source "ChessBase"]
[SourceQuality "1"]
[TimeControl "40/5400+30:1800+30"]

1. d4 {[%emt 0:00:00]} d5 {[%emt 0:01:30]} 2. c4 {[%emt 0:00:00]} dxc4 {[%emt 0:00:29]} 3. e4 {[%emt 0:00:00]} e5 {[%emt 0:00:31]} 4. Nf3 {[%emt 0:00:00]} Nf6 {[%emt 0:10:25] LiveBook: 29 Games} 5. Nxe5 {[%emt 0:31:01] D20: Queen's Gambit Accepted: 3 e3 and 3 e4} Bb4+ {[%emt 0:16:13]} 6. Nc3 {[%emt 0:01:34]} O-O {[%emt 0:09:22]} (6... b5 7. f3 a6 8. a4 Bb7 9. axb5 axb5 10. Rxa8 Bxa8 11. Be3 O-O 12. Kf2 Nbd7 13. Nxd7 Qxd7 {½-½ (46) Banusz,T (2616)-Huschenbeth,N (2601) Austria 2017}) 7. Bxc4 {[%emt 0:07:34]} Nc6 $146 {[%emt 0:03:49]} (7... c5 $16) ({Predecessor:} 7... Nxe4 8. Nxf7 Bxc3+ 9. bxc3 Rxf7 10. Bxf7+ Kxf7 11. O-O Nd6 12. Re1 Kg8 {½-½ (51) Nagy,G (2423)-Tincu,R (2151) Arad 2014}) 8. Nxc6 {[%emt 0:03:59]} bxc6 {[%emt 0:00:14] [#]} 9. f3 $1 {[%emt 0:01:31]} c5 {[%emt 0:02:30]} 10. Be3 {[%emt 0:11:51]} cxd4 {[%emt 0:00:36]} 11. Qxd4 {[%emt 0:00:08]} Qe7 {[%emt 0:01:36]} 12. Qd2 {[%emt 0:01:37]} Be6 {[%emt 0:05:38]} 13. Bxe6 {[%emt 0:01:29]} Qxe6 {[%emt 0:00:05]} 14. O-O {[%emt 0:00:39]} c5 {[%emt 0:07:10]} 15. a3 {[%emt 0:02:49]} Rfd8 {[%emt 0:00:14]} 16. Qc2 {[%emt 0:00:07]} Ba5 {[%emt 0:09:25]} 17. Bxc5 {[%emt 0:02:31]} Qc4 {[%emt 0:07:34]} 18. Bf2 {[%emt 0:00:06]} Rd3 {[%emt 0:01:36]} 19. Qa4 {[%emt 0:00:51]} Rxc3 {[%emt 0:05:00]} 20. Qxa5 {[%emt 0:00:06]} Rc2 {[%emt 0:00:07]} 21. Rad1 {[%emt 0:01:11]} h6 {[%emt 0:01:23]} 22. b4 {[%emt 0:04:01]} a6 $18 {[%emt 0:02:00]} 23. e5 {[%emt 0:07:33]} Ne8 {[%emt 0:00:40]} 24. Qd5 {[%emt 0:00:07]} Qc8 {[%emt 0:03:04]} 25. Bc5 {[%emt 0:00:52]} Nc7 {[%emt 0:02:04]} 26. Qb3 {[%emt 0:01:49]} Qf5 {[%emt 0:00:19]} 27. Qd3 {[%emt 0:03:25]} Qxd3 {[%emt 0:01:16]} 28. Rxd3 {[%emt 0:00:07]} Ne6 {[%emt 0:00:27]} 29. Be3 {[%emt 0:00:05]} Rac8 {[%emt 0:01:15]} 30. Rf2 {[%emt 0:00:40]} R2c3 {[%emt 0:01:04]} 31. Rfd2 {[%emt 0:00:17]} g5 {[%emt 0:00:08]} 32. Kf2 {[%emt 0:01:16]} Nf4 {[%emt 0:01:15]} 33. Bxf4 {[%emt 0:00:09]} gxf4 {[%emt 0:00:03]} 34. Rd4 {[%emt 0:01:09]} R8c4 {[%emt 0:01:29]} 35. Rxc4 {[%emt 0:00:07]} Rxc4 {[%emt 0:00:04]} 36. g3 {[%emt 0:00:13]} Rc3 {[%emt 0:04:03]} 37. a4 {[%emt 0:00:06]} Rb3 {[%emt 0:00:30]} 38. Rd4 {[%emt 0:00:05]} Rb2+ {[%emt 0:00:06]} 39. Kg1 {[%emt 0:00:05]} fxg3 {[%emt 0:00:20]} 40. hxg3 {[%emt 0:00:04]} Kg7 {[%emt 0:34:01]} 41. Rd6 {[%emt 0:30:06]} Rxb4 {[%emt 0:00:18]} 42. Rxa6 {[%emt 0:00:04]} Rb2 {[%emt 0:00:28]} 43. f4 {[%emt 0:01:02]} h5 {[%emt 0:01:00]} 44. a5 {[%emt 0:00:05]} Ra2 {[%emt 0:00:08]} 45. f5 {[%emt 0:01:13]} Re2 {[%emt 0:00:49]} 46. e6 {[%emt 0:00:14]} fxe6 {[%emt 0:00:38]} 47. Rxe6 {[%emt 0:01:18]} Ra2 {[%emt 0:00:01]} 48. a6 {[%emt 0:00:07]} Ra5 {[%emt 0:00:55]} 49. f6+ {[%emt 0:00:44]} Kf7 {[%emt 0:00:33]} 50. Rb6 {[%emt 0:00:03]} Ra2 {[%emt 0:00:13]} 51. Kf1 {[%emt 0:00:07]} Kg6 {[%emt 0:00:39]} 52. Ke1 {[%emt 0:00:05]} Kf7 {[%emt 0:00:33]} 53. Kd1 {[%emt 0:00:04]} Ra3 {[%emt 0:00:14]} 54. Rb7+ {[%emt 0:08:52]} Kxf6 {[%emt 0:00:21]} 55. a7 {[%emt 0:00:01]} Ke6 {[%emt 0:01:03]} 56. Ke2 {[%emt 0:01:38]} Kf6 {[%emt 0:00:21]} 57. Kf2 {[%emt 0:00:20]} Ra2+ {[%emt 0:00:35]} 58. Kf3 {[%emt 0:00:09]} Kf5 {[%emt 0:00:15] Ke4+} 59. Ke3 1-0

[Event "Katowice Springs 2018"]
[Site "Katowice"]
[Date "2018.05.08"]
[Round "2"]
[White "Krzywda, Andrzej"]
[Black "Piesik, Piotr"]
[Result "1-0"]
[ECO "C45"]
[WhiteElo "2163"]
[BlackElo "2372"]
[Annotator "ChessBase"]
[PlyCount "175"]
[EventDate "2018.??.??"]
[EventType "swiss"]
[EventCountry "POL"]
[SourceTitle "playchess.com"]
[Source "ChessBase"]
[SourceQuality "1"]
[TimeControl "40/5400+30:1800+30"]

1. e4 {[%emt 0:00:00]} e5 {[%emt 0:00:48]} 2. Nf3 {[%emt 0:00:00]} Nc6 {[%emt 0:00:03]} 3. d4 {[%emt 0:00:00]} exd4 {[%emt 0:00:27]} 4. Nxd4 {[%emt 0:00:00]} Bc5 {[%emt 0:00:28]} 5. Nxc6 {[%emt 0:00:12]} Qf6 {[%emt 0:00:52]} 6. Qf3 {[%emt 0:00:34]} Qxf3 {[%emt 0:03:34]} 7. gxf3 {[%emt 0:00:05]} bxc6 {[%emt 0:00:04]} 8. Nd2 {[%emt 0:01:27]} d6 {[%emt 0:08:19]} 9. Nb3 {[%emt 0:00:19]} Bb6 {[%emt 0:00:04]} 10. a4 {[%emt 0:00:09]} a6 {[%emt 0:04:55]} 11. Rg1 {[%emt 0:06:07]} g6 {[%emt 0:07:15]} 12. Bd2 {[%emt 0:05:20]} Nf6 {[%emt 0:07:02]} 13. Bc3 {[%emt 0:07:37]} Ke7 {[%emt 0:00:06]} 14. Na5 {[%emt 0:01:56]} Bd7 {[%emt 0:06:57]} 15. Nc4 {[%emt 0:00:43]} Rhe8 {[%emt 0:00:59]} 16. Nxb6 {[%emt 0:11:24]} cxb6 {[%emt 0:00:05]} 17. O-O-O {[%emt 0:00:12]} Nh5 {[%emt 0:01:57]} 18. Bd2 {[%emt 0:03:57]} c5 {[%emt 0:06:48]} 19. a5 {[%emt 0:04:09]} b5 {[%emt 0:09:25]} 20. Be2 {[%emt 0:00:10]} Kd8 {[%emt 0:01:49]} 21. Be3 {[%emt 0:07:43]} Kc7 {[%emt 0:03:34]} 22. Rd2 {[%emt 0:02:31]} Bc6 {[%emt 0:03:06]} 23. Rgd1 {[%emt 0:00:50]} Re6 {[%emt 0:01:53]} 24. Bf1 {[%emt 0:05:30]} f5 {[%emt 0:03:25]} 25. Bh3 {[%emt 0:07:38]} Rf8 {[%emt 0:00:11]} 26. Rg1 {[%emt 0:05:23]} Ref6 {[%emt 0:07:09]} 27. Bg5 {[%emt 0:02:24]} R6f7 {[%emt 0:00:42]} 28. exf5 {[%emt 0:03:01]} Bxf3 {[%emt 0:00:05]} 29. Re1 {[%emt 0:00:17]} gxf5 {[%emt 0:03:49]} 30. Be7 {[%emt 0:00:56]} Rg8 {[%emt 0:00:04]} 31. Bxd6+ {[%emt 0:00:28]} Kc6 {[%emt 0:00:13]} 32. b4 {[%emt 0:01:41]} cxb4 {[%emt 0:02:35]} 33. Bxb4 {[%emt 0:02:38]} Rg6 {[%emt 0:08:09]} 34. Re3 {[%emt 0:02:36]} Be4 {[%emt 0:00:47]} 35. f3 {[%emt 0:02:59]} Bd5 {[%emt 0:00:05]} 36. Re5 {[%emt 0:02:10]} Bxf3 {[%emt 0:01:15]} 37. Bxf5 {[%emt 0:01:06]} Rgf6 {[%emt 0:00:49]} 38. Be6 {[%emt 0:04:50]} Rg7 {[%emt 0:00:44]} 39. Rc5+ {[%emt 0:02:40]} Kb7 {[%emt 0:00:04]} 40. Rd6 {[%emt 0:01:07]} Re7 {[%emt 0:32:41]} 41. Bc8+ {[%emt 0:31:45]} Kb8 {[%emt 0:00:42]} 42. Rxf6 {[%emt 0:01:50]} Nxf6 {[%emt 0:00:05]} 43. Bxa6 {[%emt 0:00:20]} Re4 {[%emt 0:01:03]} 44. Rxb5+ {[%emt 0:01:26]} Ka7 {[%emt 0:00:10]} 45. Bc8 {[%emt 0:01:09]} Rc4 {[%emt 0:00:13]} 46. Be6 {[%emt 0:00:34]} Rc6 {[%emt 0:00:03]} 47. Rb6 {[%emt 0:00:47]} Rxb6 {[%emt 0:00:52]} 48. Bc5 {[%emt 0:00:40]} Nd5 {[%emt 0:00:23]} 49. axb6+ {[%emt 0:00:57]} Nxb6 {[%emt 0:00:35]} 50. Bf5 {[%emt 0:00:10]} h5 {[%emt 0:00:12]} 51. Kd2 {[%emt 0:00:11]} Kb7 {[%emt 0:00:10]} 52. Ke3 {[%emt 0:00:19]} Bd1 {[%emt 0:00:42]} 53. Kf4 {[%emt 0:00:37]} Nd5+ {[%emt 0:00:27]} 54. Kg5 {[%emt 0:00:10]} Kc6 {[%emt 0:00:08]} 55. Bd4 {[%emt 0:00:35]} Ne7 {[%emt 0:00:30]} 56. Be4+ {[%emt 0:00:14]} Kd6 {[%emt 0:00:42]} 57. h4 {[%emt 0:00:15]} Nc6 {[%emt 0:00:22]} 58. Bf6 {[%emt 0:00:52]} Ne5 {[%emt 0:00:35]} 59. Kf4 {[%emt 0:00:45]} Nc4 {[%emt 0:00:56]} 60. Bg6 {[%emt 0:01:31]} Ke6 {[%emt 0:00:12]} 61. Bd4 {[%emt 0:00:27]} Nd6 {[%emt 0:00:18]} 62. c3 {[%emt 0:00:29]} Be2 {[%emt 0:00:31]} 63. Bc2 {[%emt 0:00:49]} Nf7 {[%emt 0:01:16]} 64. Bb3+ {[%emt 0:00:07]} Ke7 {[%emt 0:00:03]} 65. Bd5 {[%emt 0:00:27]} Nd6 {[%emt 0:01:33]} 66. Bc5 {[%emt 0:01:10]} Kd7 {[%emt 0:00:04]} 67. Bxd6 {[%emt 0:00:44]} Kxd6 {[%emt 0:00:05]} 68. Bf3 {[%emt 0:00:03]} Bc4 {[%emt 0:00:19]} 69. Bxh5 {[%emt 0:00:07]} Ke6 {[%emt 0:00:15]} 70. Kg5 {[%emt 0:00:19]} Ke7 {[%emt 0:00:29]} 71. Bg6 {[%emt 0:00:22]} Kf8 {[%emt 0:00:19]} 72. Kf6 {[%emt 0:00:34]} Kg8 {[%emt 0:00:05]} 73. Be4 {[%emt 0:00:27]} Kh8 {[%emt 0:00:14]} 74. Bf5 {[%emt 0:00:22]} Be2 {[%emt 0:00:40]} 75. Bc2 {[%emt 0:01:12]} Bc4 {[%emt 0:00:07]} 76. Ke5 {[%emt 0:00:12]} Kg7 {[%emt 0:00:04]} 77. Kd4 {[%emt 0:00:04]} Be6 {[%emt 0:00:26]} 78. Be4 {[%emt 0:00:20]} Kh6 {[%emt 0:00:07]} 79. Bd5 {[%emt 0:00:17]} Bd7 {[%emt 0:00:11]} 80. c4 {[%emt 0:00:47]} Kh5 {[%emt 0:00:04]} 81. Ke5 {[%emt 0:00:19]} Kxh4 {[%emt 0:00:07]} 82. c5 {[%emt 0:00:15]} Kg3 {[%emt 0:01:10]} 83. Be6 {[%emt 0:01:01]} Bb5 {[%emt 0:00:36]} 84. Kd6 {[%emt 0:00:14]} Kf4 {[%emt 0:00:09]} 85. Bd7 {[%emt 0:00:11]} Ba6 {[%emt 0:00:15]} 86. c6 {[%emt 0:00:57]} Ke4 {[%emt 0:00:03]} 87. Kc5 {[%emt 0:01:49]} Ke5 {[%emt 0:00:16]} 88. Kb6 {[%emt 0:00:09]} 1-0

[Event "Katowice Springs 2018"]
[Site "Katowice"]
[Date "2018.05.10"]
[Round "6"]
[White "Teclaf, Pawel"]
[Black "Bakalarz, Mietek"]
[Result "1/2-1/2"]
[ECO "C43"]
[WhiteElo "2373"]
[BlackElo "2288"]
[Annotator "ChessBase"]
[PlyCount "61"]
[EventDate "2018.??.??"]
[EventType "swiss"]
[EventCountry "POL"]
[SourceTitle "playchess.com"]
[Source "ChessBase"]
[SourceQuality "1"]
[TimeControl "40/5400+30:1800+30"]

1. e4 {[%emt 0:00:00]} e5 {[%emt 0:04:40]} 2. Nf3 {[%emt 0:00:00]} Nf6 {[%emt 0:00:04]} 3. d4 Nxe4 4. dxe5 {[%emt 0:02:12]} d5 {[%emt 0:05:38]} 5. Nbd2 {[%emt 0:00:05]} Nxd2 {[%emt 0:00:10]} 6. Qxd2 {[%emt 0:00:05]} Be7 {[%emt 0:05:24]} 7. Qf4 {[%emt 0:04:21]} Qd7 {[%emt 0:12:25]} 8. h3 {[%emt 0:37:19]} Qf5 {[%emt 0:03:29]} 9. Qa4+ {[%emt 0:12:55]} Bd7 {[%emt 0:18:59]} 10. Qb3 {[%emt 0:00:09]} Qe4+ {[%emt 0:00:31]} 11. Be3 {[%emt 0:00:05]} Qb4+ {[%emt 0:00:03]} 12. Qxb4 {[%emt 0:02:32]} Bxb4+ {[%emt 0:00:13]} 13. c3 {[%emt 0:00:04]} Ba5 {[%emt 0:05:51]} 14. Rd1 {[%emt 0:00:35]} Bb6 {[%emt 0:01:07]} 15. Rxd5 {[%emt 0:02:26]} Be6 {[%emt 0:02:18]} 16. Rd1 {[%emt 0:01:35]} Bxe3 {[%emt 0:02:46]} 17. fxe3 {[%emt 0:00:05]} Bxa2 {[%emt 0:00:03]} 18. Nd4 {[%emt 0:10:14]} Be6 {[%emt 0:01:19]} 19. Be2 {[%emt 0:02:59]} Nd7 {[%emt 0:03:36]} 20. Nb5 {[%emt 0:00:39]} O-O-O {[%emt 0:05:07]} 21. Nxa7+ {[%emt 0:01:41]} Kb8 {[%emt 0:00:03]} 22. Nb5 {[%emt 0:00:06]} Nxe5 {[%emt 0:00:09]} 23. Nd4 {[%emt 0:01:44]} Bc4 {[%emt 0:01:00]} 24. b3 {[%emt 0:00:52]} Bxe2 {[%emt 0:00:30]} 25. Kxe2 {[%emt 0:00:03]} c6 {[%emt 0:08:47]} 26. Rhf1 {[%emt 0:01:58]} Rhe8 {[%emt 0:01:55]} 27. g4 {[%emt 0:01:57]} f6 {[%emt 0:06:38]} 28. Nf5 {[%emt 0:01:05]} Rxd1 {[%emt 0:00:53]} 29. Rxd1 {[%emt 0:00:26]} g6 {[%emt 0:00:26]} 30. Ng3 {[%emt 0:00:57]} Kc7 {[%emt 0:00:53]} 31. Rf1 {[%emt 0:00:19]} 1/2-1/2

[Event "Katowice Springs 2018"]
[Site "Katowice"]
[Date "2018.05.10"]
[Round "6"]
[White "Molchanov, Oleksii"]
[Black "Pacan-Milej, Kosma"]
[Result "1-0"]
[ECO "A11"]
[WhiteElo "2355"]
[BlackElo "2301"]
[Annotator "ChessBase"]
[PlyCount "83"]
[EventDate "2018.??.??"]
[EventType "swiss"]
[EventCountry "POL"]
[SourceTitle "playchess.com"]
[Source "ChessBase"]
[SourceQuality "1"]
[TimeControl "40/5400+30:1800+30"]

1. c4 {[%emt 0:00:00]} c6 {[%emt 0:00:33]} 2. Nf3 {[%emt 0:00:00]} d5 {[%emt 0:00:07]} 3. e3 {[%emt 0:00:06]} Nf6 {[%emt 0:00:11]} 4. Nc3 {[%emt 0:00:07]} a6 {[%emt 0:00:23]} 5. cxd5 {[%emt 0:07:23]} cxd5 {[%emt 0:00:11]} 6. d4 {[%emt 0:00:05]} e6 {[%emt 0:02:37]} 7. Ne5 {[%emt 0:01:09]} b5 {[%emt 0:02:26]} 8. Bd3 {[%emt 0:00:42]} Bb7 {[%emt 0:00:58]} 9. O-O {[%emt 0:00:56]} Nbd7 {[%emt 0:00:15]} 10. f4 {[%emt 0:00:36]} Bd6 {[%emt 0:05:17]} 11. Bd2 {[%emt 0:00:42]} Qe7 {[%emt 0:04:01]} 12. Be1 {[%emt 0:01:57]} Ne4 {[%emt 0:07:21]} 13. Qf3 {[%emt 0:15:03]} f5 {[%emt 0:09:03]} 14. Qh3 {[%emt 0:02:46]} O-O {[%emt 0:04:03]} 15. Ne2 {[%emt 0:06:58]} Rac8 {[%emt 0:10:30]} 16. Bh4 {[%emt 0:01:28]} Qe8 {[%emt 0:00:46]} 17. Nxd7 {[%emt 0:11:24]} Qxd7 {[%emt 0:00:11]} 18. g4 {[%emt 0:00:10]} b4 {[%emt 0:03:18]} 19. Kh1 {[%emt 0:01:51]} Bc6 {[%emt 0:07:23]} 20. gxf5 {[%emt 0:10:55]} exf5 {[%emt 0:00:12]} 21. Bxa6 {[%emt 0:00:35]} Ra8 {[%emt 0:01:07]} 22. Bd3 {[%emt 0:00:16]} Bb5 {[%emt 0:00:06]} 23. Bxb5 {[%emt 0:06:44]} Qxb5 {[%emt 0:00:05]} 24. Ng3 {[%emt 0:00:26]} Qd3 {[%emt 0:13:07]} 25. Nxe4 {[%emt 0:00:29]} dxe4 {[%emt 0:03:16]} 26. b3 {[%emt 0:02:49]} Rac8 {[%emt 0:05:27]} 27. Rf2 {[%emt 0:05:46]} g6 {[%emt 0:03:23]} 28. Re1 {[%emt 0:01:57]} Rf7 {[%emt 0:06:13]} 29. Qg2 {[%emt 0:01:11]} Rfc7 {[%emt 0:01:44]} 30. Rd2 {[%emt 0:02:20]} Qb5 {[%emt 0:00:24]} 31. Bf6 {[%emt 0:02:04]} Rc1 {[%emt 0:01:05]} 32. Qf2 {[%emt 0:00:27]} Bxf4 {[%emt 0:05:31]} 33. exf4 {[%emt 0:03:29]} e3 {[%emt 0:00:54]} 34. Qxe3 {[%emt 0:00:14]} Qc6+ {[%emt 0:00:33]} 35. d5 {[%emt 0:00:30]} Qxf6 {[%emt 0:00:15]} 36. Rxc1 {[%emt 0:01:38]} Rxc1+ {[%emt 0:00:01]} 37. Kg2 {[%emt 0:00:06]} Qh4 {[%emt 0:04:01]} 38. Qg3 {[%emt 0:06:33]} Qh5 {[%emt 0:00:03]} 39. h3 {[%emt 0:03:33]} Rc3 {[%emt 0:00:29]} 40. d6 {[%emt 0:00:15]} Rxg3+ {[%emt 0:30:14]} 41. Kxg3 {[%emt 0:30:01]} g5 {[%emt 0:00:26]} 42. d7 {[%emt 0:00:12]} 1-0